Cogmind - Beta 11 X8 *** ADVENTURER MODE // 2021.11.18 @ 19:47:10 Player: RogirekTheMad Result: Destroyed by S-43 Plague with Heavy Machine Gun Performance ------------- Evolutions (7) 3500 Regions Visited (16) 3200 Robots Destroyed (160) 800 Value Destroyed (6785) 6785 Prototype IDs (34) 680 Alien Tech Used (0) 0 Bonus (3256) 3256 TOTAL SCORE: 18221 Bonus ------- Triggered Max Security 1000 High Alert Combat Kills 1236 Follower Combat Kills 809 Aligned with FarCom 300 Friendly Fire -89 Cogmind --------- Core Integrity 0/1300 Matter 268/300 Energy 91/100 System Corruption 20% Temperature Cool (0) Movement Treading (160) Location -3/Quarantine Parts ------- > --- POWER (1) -------- (None) > --- PROPULSION (5) --- Improved Treads > --- UTILITY (12) ----- (None) > --- WEAPON (3) ------- Minigun > --- INVENTORY (5) ---- Improved Signal Interpreter Long-range Tractor Beam Field Recycling Unit (0) Peak State ------------ > --- POWER ------------ Light Antimatter Reactor > --- PROPULSION ------- Armored Medium Treads Improved Heavy Treads Improved Heavy Treads > --- UTILITY ---------- Coolant Injector High-capacity Storage Unit Matter Compressor Machine Analyzer Triangulator Enhanced Optical Array Advanced Targeting Computer Matter Filter Improved Kinecellerator Hardened Light Armor Plating Improved Light Armor Plating Improved Hacking Suite > --- WEAPON ----------- Hardcell Cannon Heavy Gauss Cannon Linear Accelerator > --- INVENTORY -------- Makeshift Power Source Fission Core Neutrino Core Improved Treads Improved Treads Experimental Power Amplifier Cooling System Improved Signal Interpreter Phase Shifter Improved System Restoration Module Long-range Tractor Beam Trap Reconfigurator Field Recycling Unit Minigun Heavy Machine Gun Hardcell Cannon Hardcell Cannon Linear Accelerator Long-range Missile Launcher Power Sword [Rating: 118] Favorites ----------- Power Cold Fusion Reactor Engine Improved Ion Engine Power Core Light Nuclear Core Reactor Cold Fusion Reactor Propulsion Armored Treads Treads Armored Treads Wheel Wheel Utility High-capacity Storage Unit Device Triangulator Storage High-capacity Storage Unit Processor Machine Analyzer Hackware Improved Hacking Suite Protection Improved Light Armor Plating Weapon Minigun Energy Gun Medium Laser Ballistic Gun Minigun Ballistic Cannon Assault Cannon Launcher Long-range Missile Launcher Impact Weapon Heavy Mace Slashing Weapon Power Sword Build | -11 -10 -10 -9 -9 -9 -8 -8 -7 -6 -6 -5 -5 -5 -4 -3 -3 ------- Run | Scr Mat Min Mat Min Exi Min Mat Fac Fac Ext Fac Upp Upp Fac Res Qua Slots Evolved 14 | . . . 2 . . . 2 2 2 . 2 . . 2 2 . Power . | . . . . . . . . . . . . . . . . . Propulsion 3 | . . . 1 . . . 1 . . . . . . . 1 . Utility 10 | . . . 1 . . . 1 1 2 . 2 . . 2 1 . Weapon 1 | . . . . . . . . 1 . . . . . . . . Parts Attached 163 | 7 9 . 21 . 1 6 9 10 7 24 14 8 . 26 9 12 Power 10 | 1 2 . 2 . . . 1 . 1 . . . . 2 . 1 Engine 6 | 1 2 . 2 . . . . . . . . . . 1 . . Core 2 | . . . . . . . 1 . . . . . . . . 1 Reactor 2 | . . . . . . . . . 1 . . . . 1 . . Propulsion 30 | 2 2 . 6 . . . 4 1 . 5 3 . . 3 1 3 Treads 25 | . . . 5 . . . 4 1 . 5 3 . . 3 1 3 Leg . | . . . . . . . . . . . . . . . . . Wheel 5 | 2 2 . 1 . . . . . . . . . . . . . Hover . | . . . . . . . . . . . . . . . . . Flight . | . . . . . . . . . . . . . . . . . Utility 62 | 2 3 . 5 . 1 4 2 5 4 11 8 . . 10 6 1 Device 23 | . 2 . . . . 2 . 2 1 3 1 . . 5 6 1 Storage 9 | 2 1 . 4 . 1 . . . . 1 . . . . . . Processor 3 | . . . . . . . 1 1 . . 1 . . . . . Hackware 3 | . . . . . . . . . 1 1 1 . . . . . Protection 24 | . . . 1 . . 2 1 2 2 6 5 . . 5 . . Artifact . | . . . . . . . . . . . . . . . . . Weapon 61 | 2 2 . 8 . . 2 2 4 2 8 3 8 . 11 2 7 Energy Gun 2 | 2 . . . . . . . . . . . . . . . . Energy Cannon . | . . . . . . . . . . . . . . . . . Ballistic Gun 17 | . 1 . 4 . . . . 1 2 3 . 2 . 3 . 1 Ballistic Cannon 22 | . 1 . 2 . . 1 1 2 . 1 2 3 . 3 2 4 Launcher 12 | . . . 2 . . 1 . 1 . 3 1 2 . 1 . 1 Special Weapon . | . . . . . . . . . . . . . . . . . Impact Weapon 2 | . . . . . . . 1 . . 1 . . . . . . Slashing Weapon 6 | . . . . . . . . . . . . 1 . 4 . 1 Piercing Weapon . | . . . . . . . . . . . . . . . . . Special Melee Weapon . | . . . . . . . . . . . . . . . . . Unidentified Prototypes 4 | . . . 1 . . . . 1 1 . . . . . 1 . Parts Lost 32 | . 4 . . . . . . . . . 1 1 . 5 . 21 Power 4 | . 1 . . . . . . . . . . . . 1 . 2 Propulsion 6 | . 2 . . . . . . . . . . . . 1 . 3 Utility 15 | . . . . . . . . . . . 1 . . 3 . 11 Weapon 7 | . 1 . . . . . . . . . . 1 . . . 5 Highest Loss Streak 21 | . 4 . . . . . . . . . 1 1 . 3 . 21 Average Slot Usage (%) 98 | . 98 100 100 100 100 100 99 99 99 100 98 99 100 98 95 71 Engine 2 | . 14 14 11 11 11 11 1 . . . . . . . . . Core 1 | . . . . . . . 7 7 2 . . . . . . . Reactor 3 | . . . . . . . . . 3 6 5 5 5 4 4 2 Treads 25 | . . . 31 33 33 33 36 30 26 26 22 23 23 19 19 13 Device 4 | . 12 14 . . . 1 . . . . 4 5 5 10 19 13 Storage 14 | . 15 14 22 22 22 22 18 15 13 13 11 11 11 10 9 7 Processor 10 | . . . . . . . 8 14 13 13 17 17 17 15 14 10 Hackware 3 | . . . . . . . . . 6 6 5 5 5 5 4 3 Protection 10 | . . . 10 11 11 9 9 6 12 12 10 11 11 13 9 6 Ballistic Gun 9 | . 1 14 10 11 11 11 9 15 12 12 11 10 11 4 . . Ballistic Cannon 7 | . 6 14 10 11 11 8 9 7 6 5 4 4 5 8 10 10 Naked Turns 23 | . . . . . . . . . . . . . . . . 23 Heaviest Build 108 | 13 21 21 62 62 62 67 62 63 74 80 83 85 85 103 108 108 Greatest Support 177 | 20 20 20 63 63 63 63 83 85 85 100 100 100 100 132 152 177 Greatest Overweight (x) 1 | . 1 1 . . . 1 . . . . . . . . . . Average Overweight (x) . | . . 1 . . . . . . . . . . . . . . Largest Inventory Capacity 20 | 8 10 10 20 20 20 20 20 20 20 20 20 20 20 20 20 20 Average Capacity 19 | 7 8 10 17 20 20 20 20 20 20 20 20 20 20 20 20 17 Most Carried 20 | 6 10 10 20 20 20 20 20 20 20 20 20 20 20 20 19 20 Average Carried 18 | 4 6 9 16 20 19 20 19 18 19 19 19 19 20 19 17 16 Final Capacity 20 | 8 10 10 20 20 20 20 20 20 20 20 20 20 20 20 20 5 Final Carried 20 | 6 10 9 20 20 20 20 20 20 20 20 19 20 20 18 19 3 Class Distribution -------------------- 39% | Hacker-Tank 27% | Mutant 11% | Hacker-Skirmisher 8% | Hacker-Assassin 5% | Skirmisher 4% | Commander-Tank Dominant Class ---------------- Mutant | -10/Materials Scavenger-Mutant | -10/Mines Mutant | -9/Materials Mutant | -9/Mines Mutant | -9/Exiles Mutant | -8/Mines Mutant | -8/Materials Skirmisher | -7/Factory Hacker-Tank | -6/Factory Hacker-Tank | -6/Extension Hacker-Skirmisher | -5/Factory Hacker-Tank | -5/Upper Caves Hacker-Tank | -5/Upper Caves Hacker-Tank | -4/Factory Hacker-Assassin | -3/Research Hacker-Skirmisher | -3/Quarantine Resources | -11 -10 -10 -9 -9 -9 -8 -8 -7 -6 -6 -5 -5 -5 -4 -3 -3 ----------- Run | Scr Mat Min Mat Min Exi Min Mat Fac Fac Ext Fac Upp Upp Fac Res Qua Matter Collected 4986 | 285 135 31 531 103 . 212 302 273 254 759 393 477 . 533 660 38 Remotely . | . . . . . . . . . . . . . . . . . Salvage Created 6076 | 231 367 42 772 80 . 128 322 263 248 493 427 450 23 740 714 776 Parts 290 | 11 14 1 51 9 . 2 15 13 15 17 22 10 1 41 43 25 Haulers Intercepted 9 | . 1 . 3 . . . 4 . 1 . . . . . . . Recyclers Shooed 2 | . . . 2 . . . . . . . . . . . . . Parts Field Recycled 13 | . . . . . . 5 . . . . . . . . 8 . Retrieved Matter 78 | . . . . . . 29 . . . . . . . . 49 . Parts Self-Destructed 1 | . . . . . . . . . . . . . 1 . . . Prevented . | . . . . . . . . . . . . . . . . . Kills | -11 -10 -10 -9 -9 -9 -8 -8 -7 -6 -6 -5 -5 -5 -4 -3 -3 ------- Run | Scr Mat Min Mat Min Exi Min Mat Fac Fac Ext Fac Upp Upp Fac Res Qua Combat Hostiles Destroyed 116 | . 8 1 17 . . 3 3 4 6 9 10 7 1 22 8 17 Melee 1 | . . . . . . . . . . . . . . 1 . . Guns 37 | . 5 . 5 . . 1 1 3 2 7 6 4 1 2 . . Cannons 49 | . 3 1 6 . . . 2 1 4 2 3 . . 16 8 3 AOE 29 | . . . 6 . . 2 . . . . 1 3 . 3 . 14 Classes Destroyed 21 | 3 2 . 6 . . 1 1 1 1 1 . 1 . 1 . 3 Worker 9 | 2 . . 1 1 . . . 2 . 1 . . . . 2 . Builder 4 | . . . 1 2 . . . . . . 1 . . . . . Tunneler 7 | 5 . . . . . . . . . 1 . . . . 1 . Hauler 9 | . 1 . 3 . . . 4 . 1 . . . . . . . Recycler 6 | 1 . . 2 . . . . 1 . . . . . . 2 . Mechanic 2 | . . . . . . . . . 1 . . . . . . 1 Operator 3 | . . . 2 . . . . . . . . . . 1 . . Watcher 4 | . . . 2 . . . . 1 . . . . . . 1 . Swarmer 12 | . . . 2 . . . . . 4 . 1 . 1 4 . . Saboteur 1 | . . . . . . . . . . . . . . . . 1 Grunt 57 | . 8 1 11 . . 2 2 2 . 6 3 6 . 4 2 10 Brawler 2 | . . . . . . 1 . . . . . . . . . 1 Duelist 2 | . . . 1 . . . . . . . . . . . . 1 Protector 1 | . . . . . . . . . . . . . . . . 1 Sentry 10 | . . . 3 . . . . 1 . 1 1 1 . 3 . . Hunter 8 | . . . . . . . 1 . . . 3 . . 3 . 1 Programmer 20 | . . . . . . . . 1 2 1 2 . . 7 6 1 Heavy 1 | . . . . . . . . . . . . . . 1 . . Behemoth 1 | . . . . . . . . . . 1 . . . . . . Executioner 1 | . . . . . . . . . . . . . . . . 1 Decomposer 3 | . . . . . . . . . . . . 3 . . . . Samaritan 5 | . . . . . . . . . . . . 5 . . . . Best Kill Streak 18 | 8 4 1 7 1 . 3 2 4 4 3 3 3 1 5 4 18 Combat Bots Only 17 | . 3 1 5 . . 3 2 2 4 3 3 3 1 5 3 17 Max Kills in Single Turn 11 | 1 1 1 3 1 . 1 1 1 1 2 2 2 1 2 1 11 Gunslinging . | . . . . . . . . . . . . . . . . . Exploded 9 | . . . 2 . . 1 . . . . 1 2 . 2 . 9 Melee 1 | . . . . . . . . . . . . . . 1 . . Uniques/NPCs Destroyed . | . . . . . . . . . . . . . . . . . Combat | -11 -10 -10 -9 -9 -9 -8 -8 -7 -6 -6 -5 -5 -5 -4 -3 -3 -------- Run | Scr Mat Min Mat Min Exi Min Mat Fac Fac Ext Fac Upp Upp Fac Res Qua Damage Taken 9033 | . 400 . 477 . . 52 123 148 91 584 631 268 121 1416 289 4433 Core 1704 | . 60 . 109 . . . 10 . 22 38 55 34 16 60 30 1270 Absorbed by Shields 97 | . . . . . . . . . . 97 . . . . . . Reduced by Siege Mode 70 | . . . . . . . . . . . . . . . . 70 Core Remaining (%) 90 | 100 . 76 . . . 72 98 100 . 92 . . 89 94 . . Volleys Fired 322 | 14 40 1 49 7 . 4 24 11 14 36 32 17 1 43 13 16 Largest 3 | 2 2 2 2 2 . 2 2 3 3 3 3 3 3 3 3 3 Hottest 192 | 100 100 55 69 69 . 55 69 94 94 112 99 120 120 160 192 192 Shots Fired 724 | 28 61 2 90 12 . 6 43 33 42 103 94 35 3 111 36 25 Gun 373 | 28 45 1 41 5 . 4 19 22 28 66 62 19 2 28 . 3 Cannon 325 | . 16 1 41 7 . . 24 11 14 35 31 8 1 80 36 20 Launcher 26 | . . . 8 . . 2 . . . 2 1 8 . 3 . 2 Special . | . . . . . . . . . . . . . . . . . Kinetic 625 | . 16 2 82 12 . 4 43 33 42 101 93 27 3 108 36 23 Thermal 73 | 28 45 . . . . . . . . . . . . . . . Explosive 26 | . . . 8 . . 2 . . . 2 1 8 . 3 . 2 Electromagnetic . | . . . . . . . . . . . . . . . . . Robot Hit Streak 39 | 8 21 3 39 8 . 14 27 7 21 19 37 21 8 23 10 8 Robot Miss Streak 5 | 1 1 . 1 . . . 1 1 1 1 1 1 . 1 2 5 Penetration Max 1 | . . . . . . . . . . . . . . . 1 1 Secondary Targets . | . . . . . . . . . . . . . . . . . Shots Hit Robots 591 | 20 53 2 68 5 . 6 28 23 36 90 80 38 1 95 31 15 Core Hits 309 | 9 19 1 42 3 . 7 11 13 11 35 25 23 1 40 16 53 Critical Kills 2 | . . . . . . . . 1 . 1 . . . . . . Critical Parts Destroyed 4 | . . . . . . . . . . 2 2 . . . . . Critical Strikes 31 | 2 6 . 2 . . . . 1 . 6 4 2 . 1 5 2 Burn 7 | 2 5 . . . . . . . . . . . . . . . Destroy 6 | . . . . . . . . 1 . 3 2 . . . . . Blast 18 | . 1 . 2 . . . . . . 3 2 2 . 1 5 2 Melee Attacks 40 | . . . . . . . 1 . . 6 . 8 . 16 8 1 Impact 7 | . . . . . . . 1 . . 6 . . . . . . Slashing 33 | . . . . . . . . . . . . 8 . 16 8 1 Piercing . | . . . . . . . . . . . . . . . . . Sneak Attacks 12 | . . . . . . . . . . . . 8 . . 4 . Combat Hostiles . | . . . . . . . . . . . . . . . . . Follow-up Attacks . | . . . . . . . . . . . . . . . . . Damage Inflicted 22466 | 261 731 28 2046 95 . 246 564 488 736 2140 1810 2489 15 4550 1847 4420 Guns 5518 | 261 485 13 529 68 . 65 248 280 438 1063 1041 329 15 666 . 17 Cannons 7746 | . 246 15 772 27 . . 316 164 273 602 512 153 . 2734 1289 643 Explosions 6989 | . . . 732 . . 181 . . . 287 257 1015 . 781 . 3736 Melee 2055 | . . . . . . . . . . 188 . 992 . 359 492 24 Ramming 158 | . . . 13 . . . . 44 25 . . . . 10 66 . Kinetic 12518 | . 246 28 1301 95 . 65 564 444 711 1665 1553 482 15 3400 1289 660 Thermal 954 | 261 485 . . . . . . . . . . . . 208 . . Explosive 6781 | . . . 732 . . 181 . . . 287 257 1015 . 573 . 3736 Electromagnetic . | . . . . . . . . . . . . . . . . . Impact 188 | . . . . . . . . . . 188 . . . . . . Slashing 1867 | . . . . . . . . . . . . 992 . 359 492 24 Piercing . | . . . . . . . . . . . . . . . . . Highest Corruption 20 | . . . . . . . . 1 . 1 2 2 2 4 . 20 Average Corruption 1 | . . . . . . . . 1 . 1 1 2 2 2 . 17 Corruption Purged . | . . . . . . . . . . . . . . . . . Effects 40 | . . . . . . . . 3 . 7 2 8 1 17 . 2 Message Errors 16 | . . . . . . . . . . 1 2 4 . 8 . 1 Matter Fused 4 | . . . . . . . . . . . . . . 4 . . Heat Flow Errors 5 | . . . . . . . . . . . . 3 . 2 . . Energy Discharges 9 | . . . . . . . . 2 . 2 . 1 1 2 . 1 Data Loss (minor) 6 | . . . . . . . . 1 . 4 . . . 1 . . Overload Shots . | . . . . . . . . . . . . . . . . . Overflow Damage 1068 | . . . 18 . . . . . . 7 . 578 . 270 119 76 Projectiles 348 | . . . 8 . . . . . . . . 17 . 202 119 2 Explosions 271 | . . . 10 . . . . . . 7 . 112 . 68 . 74 Melee 449 | . . . . . . . . . . . . 449 . . . . Knockbacks 59 | . 4 . 2 . . . . 1 1 7 6 1 . 18 15 4 Impact . | . . . . . . . . . . . . . . . . . Kinetic 53 | . 3 . 2 . . . . 1 1 7 6 1 . 18 11 3 Secondary 6 | . 1 . . . . . . . . . . . . . 4 1 Self-Inflicted Damage 352 | . . . . . . . . . . . . . . 73 12 267 Shots 6 | . . . . . . . . . . . . . . 1 1 4 Rammed 13 | . . . 3 . . . . 3 2 . . . . 3 2 . Targets Rammed 17 | . . . 3 . . . . 5 3 . . . . 3 3 . Kicked . | . . . . . . . . . . . . . . . . . Crushed 4 | . . . . . . . . 2 1 . . . . . 1 . Highest Temperature 323 | 156 262 . 108 41 . 46 134 190 139 71 127 215 56 300 323 70 Average Temperature 63 | 70 64 . 26 17 . 27 36 63 56 25 41 64 36 109 107 42 Received Heat Transfer 2109 | . 300 . 273 . . 36 54 63 . 232 117 102 27 279 75 551 Effects 3 | . 2 . . . . . . . . . . . . . 1 . Interference 3 | . 2 . . . . . . . . . . . . . 1 . Siege Activations 1 | . . . . . . . . . . . . . . . . 1 Total Turns 5 | . . . . . . . . . . . . . . . . 5 Longest Duration 5 | . . . . . . . . . . . . . . . . 5 Robots Corrupted . | . . . . . . . . . . . . . . . . . Combat Hostiles . | . . . . . . . . . . . . . . . . . Parts Fried . | . . . . . . . . . . . . . . . . . Impact Corruptions 1 | . . . . . . . . . . . . . . . . 1 Robots Melted . | . . . . . . . . . . . . . . . . . Combat Hostiles . | . . . . . . . . . . . . . . . . . Parts Melted 9 | 3 5 . . . . . . . . . 1 . . . . . Heat Transferred 2838 | 925 1813 . . . . . . . . . . . . 100 . . Parts Sabotaged 3 | . . . . . . . . . . . . . . . . 3 Parts Stolen . | . . . . . . . . . . . . . . . . . Parts Stripped . | . . . . . . . . . . . . . . . . . Power Chain Reactions . | . . . . . . . . . . . . . . . . . Missiles Intercepted . | . . . . . . . . . . . . . . . . . Alert | -11 -10 -10 -9 -9 -9 -8 -8 -7 -6 -6 -5 -5 -5 -4 -3 -3 ------- Run | Scr Mat Min Mat Min Exi Min Mat Fac Fac Ext Fac Upp Upp Fac Res Qua Peak Influence 2001 | 40 225 104 299 15 . 85 153 89 175 322 266 . . 504 230 2001 Initial 177 | . 22 74 34 . . . 27 13 37 12 132 . . 18 177 58 Average 119 | 14 109 79 100 9 . 20 53 51 47 73 165 . . 150 148 1684 Maximum Alert Level 5 | . 1 . 1 . . . . . . 1 1 . . 2 1 5 Low Security (%) 79 | 100 77 100 80 100 . 100 100 100 100 85 41 . . 71 49 . Level 1 16 | . 22 . 19 . . . . . . 14 58 . . 17 50 . Level 2 1 | . . . . . . . . . . . . . . 10 . . Level 3 . | . . . . . . . . . . . . . . . . . Level 4 . | . . . . . . . . . . . . . . . . . Level 5 . | . . . . . . . . . . . . . . . . . High Security . | . . . . . . . . . . . . . . . . . Max Security 1 | . . . . . . . . . . . . . . . . 99 Squads Dispatched 38 | . 1 1 3 . . . 1 2 2 1 6 . . 5 4 12 Investigation 6 | . 1 1 1 . . . 1 1 . . 1 . . . . . Extermination 8 | . . . . . . . . 1 2 . 1 . . 2 2 . Reinforcement 8 | . . . 2 . . . . . . 1 1 . . 3 1 . Assault 12 | . . . . . . . . . . . . . . . . 12 Garrison 4 | . . . . . . . . . . . 3 . . . 1 . Intercept . | . . . . . . . . . . . . . . . . . Construction Impeded 1 | . . . . . . . . . . . . . . 1 . . Haulers Reinforced . | . . . . . . . . . . . . . . . . . Active Scanning Responses . | . . . . . . . . . . . . . . . . . Cargo Convoy Interrupts 1 | . . . . . . . . . 1 . . . . . . . Stealth | -11 -10 -10 -9 -9 -9 -8 -8 -7 -6 -6 -5 -5 -5 -4 -3 -3 --------- Run | Scr Mat Min Mat Min Exi Min Mat Fac Fac Ext Fac Upp Upp Fac Res Qua Distress Signals 13 | . 1 . 2 . . . . . 1 3 2 . . 2 2 . Communications Jammed . | . . . . . . . . . . . . . . . . . Distress Signals . | . . . . . . . . . . . . . . . . . Times Spotted 229 | . 10 1 34 . . 3 5 5 10 30 22 8 6 31 18 46 Peak Tracking Total 23 | . 3 1 7 . . 3 2 2 5 6 5 4 6 6 4 23 Tactical Retreats 13 | . . . 2 . . . . . . 5 1 1 1 2 . 1 Traps | -11 -10 -10 -9 -9 -9 -8 -8 -7 -6 -6 -5 -5 -5 -4 -3 -3 ------- Run | Scr Mat Min Mat Min Exi Min Mat Fac Fac Ext Fac Upp Upp Fac Res Qua Traps Triggered 3 | . 1 . . . . . 1 . . 1 . . . . . . Indirectly . | . . . . . . . . . . . . . . . . . Trap Hack Attempts . | . . . . . . . . . . . . . . . . . Triggered . | . . . . . . . . . . . . . . . . . Disarmed . | . . . . . . . . . . . . . . . . . Reprogrammed . | . . . . . . . . . . . . . . . . . Reused 5 | . . . . . . . . . . 3 . . . 1 1 . Traps Reconfigurated 38 | . . . . . . . . 4 6 12 . . . 12 4 . Traps Extracted . | . . . . . . . . . . . . . . . . . Installed 4 | . . 4 . . . . . . . . . . . . . . Triggered 7 | . . . . . . . . . 2 3 . . . 1 1 . Exploded 2 | . . . . . . . . . 1 1 . . . . . . Machines | -11 -10 -10 -9 -9 -9 -8 -8 -7 -6 -6 -5 -5 -5 -4 -3 -3 ---------- Run | Scr Mat Min Mat Min Exi Min Mat Fac Fac Ext Fac Upp Upp Fac Res Qua Machines Disabled 17 | . . . . 1 . . 1 . . 2 1 . . 6 3 3 Max in Single Turn 3 | . . . . 1 . . 1 . . . 1 . . 3 1 3 Machines Sabotaged . | . . . . . . . . . . . . . . . . . Garrisons Compromised 1 | . . . . . . . . . 1 . . . . . . . Overloaded Fab Kills . | . . . . . . . . . . . . . . . . . Hacking | -11 -10 -10 -9 -9 -9 -8 -8 -7 -6 -6 -5 -5 -5 -4 -3 -3 --------- Run | Scr Mat Min Mat Min Exi Min Mat Fac Fac Ext Fac Upp Upp Fac Res Qua Machines Accessed 46 | . 2 1 6 . 2 . 2 3 3 15 5 1 . 6 . . Terminals 34 | . 2 . 5 . . . 2 2 1 14 4 . . 4 . . Fabricators 1 | . . . . . . . . . . . . . . 1 . . Repair Stations 4 | . . . . . . . . 1 2 . 1 . . . . . Recycling Units 3 | . . . 1 . . . . . . 1 . . . 1 . . Scanalyzers . | . . . . . . . . . . . . . . . . . Garrison Access . | . . . . . . . . . . . . . . . . . Total Hacks 136 | . 7 1 16 . 24 . 5 8 9 28 24 1 . 13 . . Successful 101 | . 5 1 9 . 24 . 1 3 8 20 21 1 . 8 . . Failed 35 | . 2 . 7 . . . 4 5 1 8 3 . . 5 . . Catastrophic 4 | . . . 1 . . . . 1 . 2 . . . . . . Database Lockouts . | . . . . . . . . . . . . . . . . . Manual 38 | . . . 8 . 1 . 5 5 2 5 7 . . 5 . . Terminals 82 | . 7 . 13 . . . 5 6 4 26 12 . . 9 . . Fabricators 1 | . . . . . . . . . . . . . . 1 . . Repair Stations 19 | . . . . . . . . 2 5 . 12 . . . . . Recycling Units 8 | . . . 3 . . . . . . 2 . . . 3 . . Scanalyzers . | . . . . . . . . . . . . . . . . . Garrison Access . | . . . . . . . . . . . . . . . . . Terminal Hacks 73 | . 5 1 7 . 24 . 1 2 3 15 9 1 . 5 . . Record 40 | . 3 . 1 . 23 . . . 2 3 6 . . 2 . . Prototype ID Bank 3 | . . . . . . . . . . 2 1 . . . . . Open Door 8 | . . 1 . . . . . . . 6 . 1 . . . . Open DSF 1 | . . . . . . . . 1 . . . . . . . . Level Access Points 4 | . . . . . . . 1 1 . . 1 . . 1 . . Branch Access Points 5 | . 1 . 1 . . . . . 1 . 1 . . 1 . . Terminal Index 1 | . . . 1 . . . . . . . . . . . . . Scanalyzer Index 1 | . . . . . . . . . . 1 . . . . . . Alert Level 3 | . 1 . 1 . . . . . . 1 . . . . . . Unreport Threat 1 | . . . 1 . . . . . . . . . . . . . Locate Traps 2 | . . . 1 . . . . . . 1 . . . . . . Reinforcement Status 1 | . . . . . . . . . . . . . . 1 . . Zone Layout 2 | . . . 1 . . . . . . 1 . . . . . . EX-Prototype ID Bank 1 | . . . . . 1 . . . . . . . . . . . Fabricator Hacks 1 | . . . . . . . . . . . . . . 1 . . Network Status 1 | . . . . . . . . . . . . . . 1 . . Repair Station Hacks 17 | . . . . . . . . 1 4 . 12 . . . . . Scan Component 9 | . . . . . . . . 1 2 . 6 . . . . . Repair 8 | . . . . . . . . . 2 . 6 . . . . . Recycling Unit Hacks 5 | . . . 1 . . . . . . 2 . . . 2 . . Report Inventory 3 | . . . 1 . . . . . . 1 . . . 1 . . Retrieve Components 2 | . . . . . . . . . . 1 . . . 1 . . Scanalyzer . | . . . . . . . . . . . . . . . . . Garrison Access Hacks . | . . . . . . . . . . . . . . . . . Unauthorized Hacks 5 | . . . 1 . . . . . 1 3 . . . . . . Terminals 4 | . . . . . . . . . 1 3 . . . . . . Assimilate 1 | . . . . . . . . . 1 . . . . . . . Botnet 2 | . . . . . . . . . . 2 . . . . . . Operators 1 | . . . . . . . . . . 1 . . . . . . Fabricators . | . . . . . . . . . . . . . . . . . Repair Stations . | . . . . . . . . . . . . . . . . . Recycling Units 1 | . . . 1 . . . . . . . . . . . . . Mask 1 | . . . 1 . . . . . . . . . . . . . Scanalyzers . | . . . . . . . . . . . . . . . . . Garrison Access . | . . . . . . . . . . . . . . . . . Data Cores Recovered 2 | . . . 1 . . . . . . . . . . 1 . . Used . | . . . . . . . . . . . . . . . . . Hacking Detections 35 | . 2 . 4 . . . 2 2 3 11 5 . . 6 . . Full Trace Events 4 | . . . 1 . . . 1 1 . . 1 . . . . . Feedback Events . | . . . . . . . . . . . . . . . . . Feedback Blocked . | . . . . . . . . . . . . . . . . . Robot Schematics Acquired . | . . . . . . . . . . . . . . . . . Robots Built . | . . . . . . . . . . . . . . . . . Authchips . | . . . . . . . . . . . . . . . . . Time . | . . . . . . . . . . . . . . . . . Total Robot Build Rating . | . . . . . . . . . . . . . . . . . Part Schematics Acquired . | . . . . . . . . . . . . . . . . . Parts Built . | . . . . . . . . . . . . . . . . . Authchips . | . . . . . . . . . . . . . . . . . Time . | . . . . . . . . . . . . . . . . . Total Part Build Rating . | . . . . . . . . . . . . . . . . . Parts Repaired 8 | . . . . . . . . . 2 . 6 . . . . . Time 291 | . . . . . . . . . 57 . 234 . . . . . Parts Recycled . | . . . . . . . . . . . . . . . . . Recycled Matter . | . . . . . . . . . . . . . . . . . Retrieved Matter . | . . . . . . . . . . . . . . . . . Retrieved Components 9 | . . . . . . . . . . 6 . . . 3 . . Parts Scanalyzed . | . . . . . . . . . . . . . . . . . Part Schematics Acquired . | . . . . . . . . . . . . . . . . . Parts Damaged . | . . . . . . . . . . . . . . . . . Bothacking | -11 -10 -10 -9 -9 -9 -8 -8 -7 -6 -6 -5 -5 -5 -4 -3 -3 ------------ Run | Scr Mat Min Mat Min Exi Min Mat Fac Fac Ext Fac Upp Upp Fac Res Qua Used RIF Installer . | . . . . . . . . . . . . . . . . . Robots Hacked . | . . . . . . . . . . . . . . . . . Non-combat . | . . . . . . . . . . . . . . . . . Combat . | . . . . . . . . . . . . . . . . . Robot Hacks Applied . | . . . . . . . . . . . . . . . . . Relay Couplers Released 4 | . . . . . . . . 4 . . . . . . . . Programmers 4 | . . . . . . . . 4 . . . . . . . . Fabnet Peak Effective % . | . . . . . . . . . . . . . . . . . Robots Rewired 13 | . . . . . . . . . . 13 . . . . . . Allies Hacked . | . . . . . . . . . . . . . . . . . Hacks Repelled . | . . . . . . . . . . . . . . . . . Allies | -11 -10 -10 -9 -9 -9 -8 -8 -7 -6 -6 -5 -5 -5 -4 -3 -3 -------- Run | Scr Mat Min Mat Min Exi Min Mat Fac Fac Ext Fac Upp Upp Fac Res Qua Total Allies 22 | . . . . . . . . . 1 21 . . . . . . Largest Group 12 | . . . . . . . . . 1 12 11 . . . . . Highest-Rated Group 442 | . . . . . . . . . 10 442 422 . . . . . Highest-Rated Ally 159 | . . . . . . . . . 10 159 151 . . . . . Total Orders 4 | . . . . . . . . . . 4 . . . . . . ROAM 1 | . . . . . . . . . . 1 . . . . . . AID 3 | . . . . . . . . . . 3 . . . . . . Ally Attacks 160 | . . . . . . . . . . 137 23 . . . . . Total Damage 3391 | . . . . . . . . . . 2983 408 . . . . . Kills 31 | . . . . . . . . . . 25 6 . . . . . Allies Corrupted . | . . . . . . . . . . . . . . . . . Allies Melted 1 | . . . . . . . . . . 1 . . . . . . Intel | -11 -10 -10 -9 -9 -9 -8 -8 -7 -6 -6 -5 -5 -5 -4 -3 -3 ------- Run | Scr Mat Min Mat Min Exi Min Mat Fac Fac Ext Fac Upp Upp Fac Res Qua Robot Analysis Total . | . . . . . . . . . . . . . . . . . Derelict Logs Recovered 4 | . . . . 1 . . . . . . . 2 1 . . . Drone Launches . | . . . . . . . . . . . . . . . . . Drone Recoveries . | . . . . . . . . . . . . . . . . . Exploration | -11 -10 -10 -9 -9 -9 -8 -8 -7 -6 -6 -5 -5 -5 -4 -3 -3 ------------- Run | Scr Mat Min Mat Min Exi Min Mat Fac Fac Ext Fac Upp Upp Fac Res Qua Turns Passed 14304 | 139 294 161 1213 542 670 369 740 766 1344 2618 1004 1240 262 1868 863 211 Spaces Moved 6720 | 102 170 144 548 319 408 75 345 319 507 1255 382 725 164 740 390 127 Core 47 | 1 . . . . . . . . . . . . . . . 46 Treads 6215 | . . . 505 319 408 75 345 319 507 1255 382 725 164 740 390 81 Legs . | . . . . . . . . . . . . . . . . . Wheels 458 | 101 170 144 43 . . . . . . . . . . . . . Hover . | . . . . . . . . . . . . . . . . . Flight . | . . . . . . . . . . . . . . . . . Fastest Speed 50 | 50 80 95 86 163 163 163 162 158 158 158 158 158 158 158 165 50 Average Speed 154 | 79 84 95 156 163 163 180 162 161 158 158 158 158 158 160 165 123 Slowest Speed 243 | 80 95 95 163 163 163 243 162 162 158 158 158 158 158 165 165 165 Overloaded Moves . | . . . . . . . . . . . . . . . . . Propulsion Burnouts . | . . . . . . . . . . . . . . . . . Robots Hopped . | . . . . . . . . . . . . . . . . . Cave-ins Triggered . | . . . . . . . . . . . . . . . . . Exploration Rate (%) 35 | 4 31 41 46 69 87 23 25 9 8 94 10 87 19 15 8 26 Regions Visited 16 Branch Regions 8 Pre-discovered Areas 3 | . . . . 1 1 . . . . . . 1 . . . . Known Exits Taken 8 | . 1 . 1 . . . 1 1 1 . 1 . 1 1 . . Unknown Exits Taken 8 | 1 . 1 . 1 1 1 . . . 1 . 1 . . 1 . Scrap Searched 7 | . . . . 1 . 1 . . . . . 2 3 . . . Spaces Dug 14 | . . . . . . . 4 . . . . . . 8 2 . Terrain Destroyed 351 | . . . 51 1 . 22 5 . . 18 19 106 1 83 8 37 Melee 11 | . . . . . . . 1 . . . . . . 8 2 . Projectile 35 | . . . 1 1 . . 4 . . . 2 2 1 14 6 4 AOE 305 | . . . 50 . . 22 . . . 18 17 104 . 61 . 33 Terrain Rammed . | . . . . . . . . . . . . . . . . . Walls Destroyed . | . . . . . . . . . . . . . . . . . Machines Disabled . | . . . . . . . . . . . . . . . . . Actions | -11 -10 -10 -9 -9 -9 -8 -8 -7 -6 -6 -5 -5 -5 -4 -3 -3 --------- Run | Scr Mat Min Mat Min Exi Min Mat Fac Fac Ext Fac Upp Upp Fac Res Qua Total 9981 | 128 258 168 819 331 415 301 492 545 1025 1814 715 776 166 1305 564 159 Wait 2488 | . 30 15 154 4 . 215 93 181 481 407 288 18 . 462 140 . Move 6704 | 101 169 143 547 318 407 74 344 318 506 1254 381 724 163 739 389 127 Hop . | . . . . . . . . . . . . . . . . . Pick Up 87 | 6 7 2 23 1 3 1 9 6 8 9 . 1 1 8 2 . Fast Attach 22 | 7 1 . 2 . . . 1 . 2 . 6 . . 2 . 1 Attach 38 | . 4 . 4 . . . 2 3 2 . 3 1 . 7 2 10 Detach 1 | . . . 1 . . . . . . . . . . . . . Swap 103 | . 4 . 15 . 1 6 6 7 3 24 5 7 . 17 7 1 Drop 86 | . 3 3 21 1 4 1 12 5 6 18 . . 1 8 . 3 Fire 322 | 14 40 1 49 7 . 4 24 11 14 36 32 17 1 43 13 16 Melee 40 | . . . . . . . 1 . . 6 . 8 . 16 8 1 Ram . | . . . . . . . . . . . . . . . . . Kick . | . . . . . . . . . . . . . . . . . Crush 17 | . . . 3 . . . . 5 3 . . . . 3 3 . Escape Stasis . | . . . . . . . . . . . . . . . . . Rewire 69 | . . . . . . . . 9 . 60 . . . . . . Trap 4 | . . 4 . . . . . . . . . . . . . . Miscellaneous . | . . . . . . . . . . . . . . . . . Route ------- -11/Scrapyard -10/Materials -10/Mines -9/Materials (discovered 4 exits: *Mat / *Min x2 / *Sto) -9/Mines (discovered 3 exits: *Mat x2 / *Exi) -9/Exiles -8/Mines -8/Materials (discovered 3 exits: *Fac x3) -7/Factory (discovered 4 exits: *Fac x4) -6/Factory (discovered 4 exits: Low x2 / *Ext x2) -6/Extension (discovered 3 exits: *Fac x2 / [*Cet]) -5/Factory (discovered 6 exits: *Fac x4 / *Upp x2) -5/Upper Caves -5/Upper Caves -4/Factory (discovered 6 exits: *Res x4 / Upp x2) -3/Research -3/Quarantine History --------- Turn | Location | Event 13 | -11/Scrapyard | Discovered new exit (range 16) 140 | -11/Scrapyard | Entered Materials 194 | -10/Materials | Identified exit to Mines 325 | -10/Materials | Build established: Mutant 328 | -10/Materials | Lost 4 parts (1p2n1w) 434 | -10/Materials | Entered Mines 544 | -10/Mines | Found a hidden stash of uninstalled traps 544 | -10/Mines | Discovered new exit (range 8) 562 | -10/Mines | Met a Derelict shopkeep closing up shop 595 | -10/Mines | Entered Materials 595 | -9/Materials | Evolved 2 slots: Propulsion x1, Utility x1 859 | -9/Materials | Discovered new exit (range 12) 913 | -9/Materials | Identified exit to Mines 913 | -9/Materials | Identified exit to Storage 1205 | -9/Materials | Discovered new exit (range 16) 1808 | -9/Materials | Entered Mines 1816 | -9/Mines | Met a Derelict bent on vengeance 1955 | -9/Mines | Learned location of Zion (-6) 2068 | -9/Mines | Discovered new exit (range 4) 2316 | -9/Mines | Discovered new exit (range 14) 2342 | -9/Mines | Deemed a non-threat by the Exiles lab entrance 2342 | -9/Mines | Discovered new exit (range 5) 2350 | -9/Mines | Entered Exiles 2406 | -9/Exiles | Met 8R-AWN 2427 | -9/Exiles | Met EX-HEX 2477 | -9/Exiles | Met EX-BIN 2499 | -9/Exiles | Aligned with FarCom system 2500 | -9/Exiles | Given EX-Vault access code 2538 | -9/Exiles | Opened EX-Vault 2550 | -9/Exiles | Found Trap Reconfigurator 2582 | -9/Exiles | Warned to stay clear of 0b10 Research branches 2629 | -9/Exiles | Met EX-DEC 2723 | -9/Exiles | Visited The Gauntlet 2999 | -9/Exiles | Discovered new exit (range 14) 3020 | -9/Exiles | Left Exiles lab with Trap Reconfigurator 3020 | -9/Exiles | Entered Mines 3361 | -8/Mines | Discovered new exit (range 15) 3389 | -8/Mines | Entered Materials 3389 | -8/Materials | Evolved 2 slots: Propulsion x1, Utility x1 3936 | -8/Materials | Identified exit to Factory 4129 | -8/Materials | Entered Factory 4129 | -7/Factory | Evolved 2 slots: Utility x1, Weapon x1 4441 | -7/Factory | Build established: Skirmisher 4621 | -7/Factory | Identified exit to Factory 4895 | -7/Factory | Entered another Factory area 4895 | -6/Factory | Evolved 2 slots: Utility x2 5109 | -6/Factory | Repaired Minigun 5436 | -6/Factory | Build established: Hacker-Tank 5717 | -6/Factory | Repaired Minigun 5922 | -6/Factory | Identified exit to Lower Caves 5922 | -6/Factory | Identified exit to Extension 6052 | -6/Factory | Cargo convoy interrupted 6239 | -6/Factory | Entered Extension 6239 | -6/Extension | Accompanied by 1 ally 6765 | -6/Extension | Rescued a captive Derelict 6766 | -6/Extension | Rescued a captive Derelict 7123 | -6/Extension | Rescued a captive Derelict 7124 | -6/Extension | Rescued a captive Derelict 7402 | -6/Extension | Rescued A7 8020 | -6/Extension | Spotted B-75 Beast 8039 | -6/Extension | Allies destroyed B-75 Beast 8045 | -6/Extension | Spotted B-75 Beast 8067 | -6/Extension | Destroyed B-75 Beast 8099 | -6/Extension | Discovered new exit (range 3) 8291 | -6/Extension | Rescued a captive Derelict 8384 | -6/Extension | Rescued a captive Derelict 8384 | -6/Extension | Rescued a captive Derelict 8494 | -6/Extension | Build established: Commander-Tank 8658 | -6/Extension | Discovered new exit (range 10) 8661 | -6/Extension | Discovered new exit (range 6) 8672 | -6/Extension | Disrupted transfer network 8857 | -6/Extension | Entered Factory 8857 | -5/Factory | Accompanied by 11 allies (A7) 8857 | -5/Factory | Evolved 2 slots: Utility x2 8860 | -5/Factory | Discovered new exit (range 21) 9156 | -5/Factory | Build established: Hacker-Skirmisher 9168 | -5/Factory | Identified exit to Upper Caves 9169 | -5/Factory | Identified exit to Factory 9373 | -5/Factory | Garrison activated, responded to threat 9542 | -5/Factory | Repaired Arm. Treads 9581 | -5/Factory | Repaired Reflective Plating 9615 | -5/Factory | Repaired Hrd. Light Armor Plating 9654 | -5/Factory | Repaired Adv. Treads 9694 | -5/Factory | Repaired Assault Cannon 9745 | -5/Factory | Repaired Imp. Medium Treads 9861 | -5/Factory | Entered Upper Caves 10028 | -5/Upper Caves | Attracted the attention of an 0b10 checkpoint 10166 | -5/Upper Caves | Build established: Hacker-Tank 10206 | -5/Upper Caves | Learned Factory trap positions 10271 | -5/Upper Caves | Learned location of Armory (-3) 10645 | -5/Upper Caves | Encountered a Warlord checkpoint 10650 | -5/Upper Caves | Discovered new exit (range 14) 11101 | -5/Upper Caves | Entered another Upper Caves area 11105 | -5/Upper Caves | Discovered exit to Factory (range 14) 11182 | -5/Upper Caves | Learned Factory stockpile data 11247 | -5/Upper Caves | Spotted B-75 Beast 11325 | -5/Upper Caves | Attracted the attention of an 0b10 checkpoint 11363 | -5/Upper Caves | Entered Factory 11363 | -4/Factory | Evolved 2 slots: Utility x2 11364 | -4/Factory | Loaded intel: 120 trap records 12307 | -4/Factory | Identified exit to Upper Caves 12832 | -4/Factory | Identified exit to Research 13079 | -4/Factory | Lost 3 parts (1p1n1u) 13231 | -4/Factory | Entered Research 13231 | -3/Research | Evolved 2 slots: Propulsion x1, Utility x1 13310 | -3/Research | Build established: Hacker-Assassin 14070 | -3/Research | Garrison activated, responded to threat 14086 | -3/Research | Discovered new exit (range 6) 14094 | -3/Research | Entered Quarantine 14095 | -3/Quarantine | Maximum security lockdown engaged 14232 | -3/Quarantine | Spotted Executioner 14249 | -3/Quarantine | Destroyed Executioner 14258 | -3/Quarantine | System corruption reached 10% 14272 | -3/Quarantine | Core integrity fell below 50% 14281 | -3/Quarantine | Core integrity fell below 20% 14289 | -3/Quarantine | Destroyed 17 combat bots 14305 | -3/Quarantine | Destroyed by S-43 Plague with Heavy Machine Gun Last Messages --------------- 14263_ Matter Compressor destroyed. 14263_ System corrupted by crushing effect (+4). 14263_ System corrupted by crushing effect (+2). 14263_ System corrupted by crushing effect (+3). 14264_ The unstable cave ceiling collapses. 14264_ B-74 Champion crushed by falling debris. 14265_ The unstable cave ceiling collapses. 14268_ Knocked back. 14268_ B-74 Champion Med. Treads blasted off. 14268_ B-74 Champion destroyed. 14268_ Hardcell Cannon destroyed. 14272_ Knocked back. 14275_ Dropped Hcp. Storage Unit. 14275_ Hardcell Cannon destroyed. 14276_ The unstable cave ceiling collapses. 14279_ Acquired 20 matter. 14280_ Acquired 18 matter. 14284_ Critical hit (Burn: +37). 14295_ ALERT: Assault forces dispatched. 14299_ W J6/8=7NWYU1LWH2KJV2D>6XSWD1X4 Map ----- +----------------------------------------------------+ | = #??????????????????????????????????????????? | | = #??????????????????????????????????????????? | | %*% #????????????????""????????????????????????? | | ###?????""????????""????????????????????????? | | % #?????""????????S"????????????????????????? | | # ##?????""???????"""????????????????????????? | | %% #??????T????????"""????????????????????????? | | % #??????""???????"""????????????????????????? | | # #??????""??????????????????????????????????? | | ##??????""??????????####????????????????????? | | #??????????????????? #????????????????????? | | ##?????????????????? #????????????????????? | | "##########+######## #########????????????? | | g bg ????????????? | | #####"####### g l ???????????? | | ????## # ???????????? | | ###### # b g g??????????? | | + """ ###########/###g #?????????????????? | | # """" ## # #?????????????????? | | + """" ## """"" # ###???????????????? | | # """ #??""""" g # CC???????????????? | | #### # ## """"" #g #?????????????????? | | ???# # ## C#CC #?????????????????? | | ???# # ## C #?????????????????? | | ???# # ################+#####???????????????? | | #### #"S #??# @ s #???????????????? | | #""" #??# """"""""" ss #???????????????? | | ###### "" #?????!"" ""!" #???????????????? | | ?????? #??????""""""" #???????????????? | | ??????#######???????"""""" #???????????????? | | ?????????????????????"""" #???????????????? | | ?????????????????????? #???????????????? | | ????????????????????????##########???????????????? | | | | | | | | | | | | | | | | | | | | | | | | | | | | | | | | | | | +----------------------------------------------------+ Best States ------------- Heat Dissipation 46 Coolant Potential 65 Energy Generation 21 Energy Capacity 315 Matter Stores 550 Matter Capacity 550 Sight Range 22 Terrain Scan Density 10 Armor Coverage 450 Resistance: KI 20 Resistance: TH 35 Resistance: EX 20 Resistance: EM 20 Resistance: I 20 Resistance: S 20 Resistance: P 20 Phase Shifting 5 Evasion (%) 50 Targeting Accuracy 8 Recoil Reduction 5 Matter Filtering 30 Kinecelleration 40 Offensive Hacking 22 Item Schematics ----------------- None Robot Schematics ------------------ None Fabricated ------------ Nothing Alien Tech Used ----------------- None Achievements -------------- Prison Break Challenges ------------ None Game ------ Seed GhostCombatActivator Manual? 0 Play Time 02:49:13 Cumulative 75.8 hours Start 2021.11.18 @ 14:48:06 End 2021.11.18 @ 19:47:10 Sessions 1 Manual Loads 0 Difficulty Adventurer Special Mode None Game No. 45 Rogue 9 Adventurer 36 Explorer 0 Win Type - Total 1 Types 1/0/0/0/0/0/0/0/0 Lore% 39 Gallery% 51 Achievement% 43 Wizard Run 0 Options --------- ASCII 0 Keyboard 0 Movement Mouse Keybinds 0 Fullscreen 1 Font 24/Smallcaps Map View 76x50 Tactical HUD 1 Map Filters NONE Filters NONE Steam 1 RUN: fe5ec9a3-bc86-4bb1-917c-bc548e9ff981